Cogmind - Beta 14 @@@ ROGUE MODE // 2025.03.31 @ 19:26:33 Player: golanco Result: Destroyed by G-34 Mercenary with Small Laser Performance ------------- Evolutions (1) 500 Regions Visited (2) 400 Robots Destroyed (74) 370 Value Destroyed (1556) 1556 Prototype IDs (4) 80 Alien Tech Used (0) 0 Bonus (244) 244 TOTAL SCORE: 3150 Bonus ------- High Alert Combat Kills 244 Cogmind --------- Core Integrity 0/400 Matter 40/300 Energy 93/100 System Corruption 0% Temperature Danger (409) Movement Core (850) Ox16 Location -9/Materials Parts ------- > --- POWER (1) -------- (None) > --- PROPULSION (2) --- Light Treads > --- UTILITY (2) ------ High-capacity Storage Unit > --- WEAPON (4) ------- Improved Medium Laser Improved Light Cannon Improved Light Cannon > --- INVENTORY (20) --- Cooled Ion Engine Cooled Ion Engine Cooled Ion Engine Light Treads Light Treads Light Treads Heat Sink Improved Heat Sink Targeting Computer Shield Generator Shield Generator Shield Generator Shield Generator Hacking Suite Hacking Suite Heavy EM Pulse Gun Advanced Beam Cannon Advanced Beam Cannon Advanced Beam Cannon Grenade Launcher Peak State ------------ > --- POWER ------------ Cooled Ion Engine > --- PROPULSION ------- Light Treads Light Treads > --- UTILITY ---------- Improved Heat Sink High-capacity Storage Unit > --- WEAPON ----------- Improved Medium Laser Advanced Beam Cannon Improved Light Cannon Improved Light Cannon > --- INVENTORY -------- Ion Engine Cooled Ion Engine Cooled Ion Engine Cooled Ion Engine Cooled Ion Engine Light Treads Light Treads Light Treads Large Storage Unit Large Storage Unit Advanced Beam Cannon Advanced Beam Cannon Advanced Beam Cannon Advanced Beam Cannon Advanced Beam Cannon Light Cannon Light Cannon Improved Light Cannon Grenade Launcher Flail [Rating: 23] Favorites ----------- Power Cooled Ion Engine Engine Cooled Ion Engine Power Core Light Nuclear Core Propulsion Light Treads Treads Light Treads Utility High-capacity Storage Unit Device Improved Heat Sink Storage High-capacity Storage Unit Processor Transport Network Coupler Weapon Improved Light Cannon Energy Gun Improved Medium Laser Energy Cannon Advanced Beam Cannon Ballistic Cannon Improved Light Cannon Launcher Grenade Launcher Build | -11 -10 -9 ------- Run | Yrd Mat Mat Slots Evolved 2 | . . 2 Power . | . . . Propulsion . | . . . Utility . | . . . Weapon 2 | . . 2 Parts Attached 33 | 6 3 24 Power 5 | 1 . 4 Engine 4 | 1 . 3 Core 1 | . . 1 Reactor . | . . . Propulsion 6 | 2 . 4 Treads 6 | 2 . 4 Leg . | . . . Wheel . | . . . Hover . | . . . Flight . | . . . Utility 8 | 1 2 5 Device 3 | . . 3 Storage 4 | 1 2 1 Processor 1 | . . 1 Hackware . | . . . Protection . | . . . Artifact . | . . . Weapon 14 | 2 1 11 Energy Gun 4 | 2 . 2 Energy Cannon 2 | . . 2 Ballistic Gun . | . . . Ballistic Cannon 7 | . . 7 Launcher 1 | . 1 . Special Weapon . | . . . Impact Weapon . | . . . Slashing Weapon . | . . . Piercing Weapon . | . . . Special Melee Weapon . | . . . Unidentified Prototypes 4 | . . 4 Parts Lost 4 | . . 4 Power 1 | . . 1 Propulsion 1 | . . 1 Utility 1 | . . 1 Weapon 1 | . . 1 Highest Loss Streak 4 | . . 4 To Critical Strikes . | . . . Average Slot Usage (%) 97 | . 85 99 Engine 10 | . 14 9 Core 1 | . . 1 Treads 22 | . 28 22 Device 4 | . . 5 Storage 11 | . 14 11 Processor 4 | . . 5 Energy Gun 12 | . 14 11 Energy Cannon 5 | . . 6 Ballistic Cannon 20 | . . 24 Launcher 2 | . 13 1 Peak Build Rating 23 | 6 7 23 Average Rating 17 | 4 6 20 On Entrance 4 | . 6 6 Naked Turns . | . . . Heaviest Build 64 | 11 33 64 Greatest Support 40 | 40 40 40 Greatest Overweight (x) 3 | 2 . 3 Average Overweight (x) . | . . . Largest Inventory Capacity 20 | 8 15 20 Average Capacity 17 | 7 8 19 Most Carried 20 | 2 6 20 Average Carried 14 | . 3 17 Final Capacity 20 | 8 15 20 Final Carried 20 | 2 6 20 Class Distribution -------------------- 40% | Skirmisher 36% | Gunner 16% | Mutant 5% | Bomber Dominant Class ---------------- Mutant | -10/Materials Skirmisher | -9/Materials Resources | -11 -10 -9 ----------- Run | Yrd Mat Mat Matter Collected 1108 | 220 110 778 Remotely . | . . . Salvage Created 2190 | . 209 1981 Parts 163 | . 25 138 Haulers Intercepted 6 | . 1 5 Recyclers Shooed 3 | . 1 2 Parts Field Recycled . | . . . Retrieved Matter . | . . . Parts Self-Destructed . | . . . Prevented . | . . . Kills | -11 -10 -9 ------- Run | Yrd Mat Mat Combat Hostiles Destroyed 47 | . 9 38 Guns 6 | . 2 4 Cannons 33 | . . 33 AOE 7 | . 7 . Classes Destroyed 10 | . 5 5 Worker 4 | . . 4 Builder 4 | . 2 2 Hauler 6 | . 1 5 Recycler 6 | . . 6 Operator 3 | . . 3 Watcher 4 | . 1 3 Swarmer 16 | . 5 11 Grunt 24 | . 4 20 Duelist 1 | . . 1 Sentry 6 | . . 6 Best Kill Streak 15 | . 6 15 Combat Bots Only 7 | . 5 7 Max Kills in Single Turn 3 | . 2 3 Gunslinging . | . . . Exploded 2 | . 2 . Melee . | . . . Uniques/NPCs Destroyed . | . . . Combat | -11 -10 -9 -------- Run | Yrd Mat Mat Hostile Shots Fired 145 | . 18 127 Missed 32 | . 5 27 Damage Taken 1659 | . 174 1485 Core 447 | . 36 411 Absorbed by Shields . | . . . Core Remaining (%) 92 | 100 85 . Volleys Fired 115 | . 25 90 Largest 4 | . 2 4 Hottest 202 | . 70 202 Shots Fired 352 | . 36 316 Gun 122 | . 25 97 Cannon 219 | . . 219 Launcher 11 | . 11 . Special . | . . . Kinetic 182 | . . 182 Thermal 116 | . . 116 Explosive 11 | . 11 . Electromagnetic 43 | . 25 18 Robot Hit Streak 16 | . 5 16 Robot Miss Streak 7 | . 3 7 Penetration Max . | . . . Secondary Targets . | . . . Shots Hit Robots 152 | . 13 139 Core Hits 94 | . 17 77 Critical Kills . | . . . Critical Parts Destroyed . | . . . Critical Strikes 10 | . . 10 Burn 5 | . . 5 Blast 4 | . . 4 Corrupt 1 | . . 1 Melee Attacks . | . . . Impact . | . . . Slashing . | . . . Piercing . | . . . Sneak Attacks . | . . . Combat Hostiles . | . . . Follow-up Attacks . | . . . Damage Inflicted 3935 | . 878 3057 Guns 1088 | . 160 928 Cannons 2104 | . . 2104 Explosions 739 | . 718 21 Melee . | . . . Ramming 4 | . . 4 Kinetic 1632 | . . 1632 Thermal 1264 | . 80 1184 Explosive 638 | . 638 . Electromagnetic 397 | . 160 237 Impact . | . . . Slashing . | . . . Piercing . | . . . Highest Corruption 1 | . 1 . Average Corruption 1 | . 1 . Corruption Purged . | . . . Corruption Blocked . | . . . Effects 1 | . 1 . Data Loss (major) 1 | . 1 . Overload Shots . | . . . Overflow Damage 95 | . 33 62 Projectiles 62 | . . 62 Explosions 33 | . 33 . Melee . | . . . Knockbacks 18 | . . 18 Impact . | . . . Kinetic 14 | . . 14 Secondary 4 | . . 4 Self-Inflicted Damage 34 | . 34 . Shots 2 | . 2 . Rammed 1 | . . 1 Targets Rammed 1 | . . 1 Kicked . | . . . Crushed . | . . . Highest Temperature 750 | . 69 750 Average Temperature 156 | . 28 171 Received Heat Transfer 525 | . 72 453 Effects 30 | . . 30 Shutdowns 3 | . . 3 Energy Bleed 4 | . . 4 Interference 6 | . . 6 Matter Decay 1 | . . 1 Short Circuit 3 | . . 3 Damage (minor) 3 | . . 3 Damage (major) 5 | . . 5 Damage (core) 5 | . . 5 Siege Activations . | . . . Robots Corrupted . | . . . Combat Hostiles . | . . . Parts Fried 1 | . . 1 Impact Corruptions . | . . . Robots Melted 1 | . . 1 Combat Hostiles 1 | . . 1 Parts Melted 7 | . . 7 Heat Transferred 2888 | . 100 2788 Parts Sabotaged . | . . . Parts Stolen . | . . . Parts Stripped . | . . . Power Chain Reactions 2 | . 1 1 Alert | -11 -10 -9 ------- Run | Yrd Mat Mat Peak Influence 781 | . 288 781 Initial 121 | . . 121 Average 437 | . 114 508 Maximum Alert Level 3 | . 1 3 Low Security (%) 21 | 100 70 10 Level 1 11 | . 29 9 Level 2 54 | . . 65 Level 3 12 | . . 15 Level 4 . | . . . Level 5 . | . . . High Security . | . . . Max Security . | . . . Squads Dispatched 7 | . 1 6 Investigation 2 | . . 2 Extermination . | . . . Reinforcement 4 | . 1 3 Assault 1 | . . 1 Garrison . | . . . Intercept . | . . . Searches Triggered . | . . . Construction Impeded . | . . . Haulers Reinforced . | . . . Active Scanning Responses . | . . . Cargo Convoy Interrupts . | . . . Stealth | -11 -10 -9 --------- Run | Yrd Mat Mat Distress Signals 3 | . 1 2 Communications Jammed . | . . . Distress Signals . | . . . Times Spotted 63 | . 13 50 Peak Tracking Total 5 | . 4 5 Tactical Retreats 1 | . . 1 Traps | -11 -10 -9 ------- Run | Yrd Mat Mat Traps Triggered 2 | . 1 1 Indirectly . | . . . Trap Hack Attempts . | . . . Triggered . | . . . Disarmed . | . . . Reprogrammed . | . . . Reused . | . . . Traps Extracted . | . . . Installed . | . . . Triggered . | . . . Machines | -11 -10 -9 ---------- Run | Yrd Mat Mat Machines Disabled 4 | . 1 3 Max in Single Turn 1 | . 1 1 Machines Repaired . | . . . Machines Dismantled . | . . . Machines Sabotaged . | . . . Overloaded Fab Kills . | . . . Hacking | -11 -10 -9 --------- Run | Yrd Mat Mat Machines Accessed 4 | . 1 3 Terminals 3 | . 1 2 Fabricators . | . . . Repair Stations . | . . . Recycling Units 1 | . . 1 Scanalyzers . | . . . Garrison Access . | . . . Total Hacks 9 | . 2 7 Successful 4 | . 1 3 Failed 5 | . 1 4 Catastrophic . | . . . Database Lockouts . | . . . Manual 2 | . . 2 Terminals 5 | . 2 3 Fabricators . | . . . Repair Stations . | . . . Recycling Units 4 | . . 4 Scanalyzers . | . . . Garrison Access . | . . . Terminal Hacks 3 | . 1 2 Transport Status 1 | . . 1 Hauler Manifests 1 | . . 1 Registered Components 1 | . 1 . Fabricator Hacks . | . . . Repair Station Hacks . | . . . Recycling Unit Hacks 1 | . . 1 Retrieve Components 1 | . . 1 Scanalyzer . | . . . Garrison Access Hacks . | . . . Unauthorized Hacks . | . . . Terminals . | . . . Fabricators . | . . . Repair Stations . | . . . Recycling Units . | . . . Scanalyzers . | . . . Garrison Access . | . . . Data Cores Recovered . | . . . Used . | . . . Hacking Detections 3 | . 1 2 Full Trace Events 1 | . . 1 Feedback Events . | . . . Feedback Blocked . | . . . Robot Schematics Acquired . | . . . Robots Built . | . . . Authchips . | . . . Time . | . . . Total Robot Build Rating . | . . . Part Schematics Acquired . | . . . Parts Built . | . . . Authchips . | . . . Time . | . . . Total Part Build Rating . | . . . Parts Repaired . | . . . Time . | . . . Parts Recycled . | . . . Recycled Matter . | . . . Retrieved Matter . | . . . Retrieved Components . | . . . Parts Scanalyzed . | . . . Part Schematics Acquired . | . . . Parts Damaged . | . . . Bothacking | -11 -10 -9 ------------ Run | Yrd Mat Mat Used RIF Installer . | . . . Robots Hacked . | . . . Non-combat . | . . . Combat . | . . . Robot Hacks Applied . | . . . Relay Couplers Released . | . . . Fabnet Peak Effective % . | . . . Robots Rewired . | . . . Allies Hacked . | . . . Hacks Repelled . | . . . Allies | -11 -10 -9 -------- Run | Yrd Mat Mat Total Allies . | . . . Largest Group . | . . . Highest-Rated Group . | . . . Highest-Rated Ally . | . . . Total Orders . | . . . Ally Attacks . | . . . Total Damage . | . . . Kills . | . . . Allies Corrupted . | . . . Allies Melted . | . . . Intel | -11 -10 -9 ------- Run | Yrd Mat Mat Robot Analysis Total . | . . . Derelict Logs Recovered . | . . . Drone Launches . | . . . Drone Recoveries . | . . . Exploration | -11 -10 -9 ------------- Run | Yrd Mat Mat Turns Passed 2500 | 92 333 2075 Spaces Moved 921 | 55 165 701 Core 18 | 18 . . Treads 903 | 37 165 701 Legs . | . . . Wheels . | . . . Hover . | . . . Flight . | . . . Fastest Speed 50 | 50 160 160 Average Speed 218 | 148 160 237 Slowest Speed 400 | 160 160 400 Overloaded Moves . | . . . Propulsion Burnouts . | . . . Robots Hopped . | . . . Cave-ins Triggered . | . . . Exploration Rate (%) 31 | 4 41 50 Regions Visited 2 Branch Regions . Pre-discovered Areas . | . . . Known Exits Taken . | . . . Unknown Exits Taken 2 | 1 1 . Scrap Searched . | . . . Spaces Dug . | . . . Terrain Destroyed 70 | . 49 21 Melee . | . . . Projectile 15 | . . 15 AOE 55 | . 49 6 Terrain Rammed . | . . . Walls Destroyed . | . . . Machines Disabled . | . . . Actions | -11 -10 -9 --------- Run | Yrd Mat Mat Total 1168 | 62 198 908 Wait 28 | . . 28 Move 919 | 54 164 701 Hop . | . . . Pick Up 39 | 2 4 33 Fast Attach 15 | 6 1 8 Attach 3 | . . 3 Detach 1 | . . 1 Swap 15 | . 2 13 Drop 32 | . 2 30 Fire 115 | . 25 90 Melee . | . . . Ram . | . . . Kick . | . . . Crush 1 | . . 1 Escape Stasis . | . . . Rewire . | . . . Trap . | . . . Miscellaneous . | . . . Route ------- -11/Scrapyard -10/Materials (discovered 3 exits: *Mat x3) -9/Materials (discovered 2 exits: [*Mat] / [*Min]) History --------- Turn | Location | Event 26 | -11/Scrapyard | Discovered new exit (range 14) 93 | -11/Scrapyard | Entered Materials 193 | -10/Materials | Discovered new exit (range 14) 249 | -10/Materials | Discovered new exit (range 8) 318 | -10/Materials | Build established: Mutant 403 | -10/Materials | Discovered new exit (range 15) 426 | -10/Materials | Entered another Materials area 426 | -9/Materials | Evolved 2 slots: Weapon x2 691 | -9/Materials | Destroyed 7 combat bots 1080 | -9/Materials | Build established: Gunner 1296 | -9/Materials | Discovered new exit (range 8) 1468 | -9/Materials | Discovered new exit (range 8) 1511 | -9/Materials | Build established: Skirmisher 1983 | -9/Materials | Core integrity fell below 50% 1987 | -9/Materials | Core integrity fell below 20% 2426 | -9/Materials | First assault squad dispatched 2501 | -9/Materials | Destroyed by G-34 Mercenary with Small Laser Last Messages --------------- Y-45 Defender destroyed. Acquired 1 matter. G-34 Mercenary suffers critical hit (Burn). G-34 Mercenary knocked back. G-47 Trooper destroyed. G-34 Mercenary unfolds itself. G-34 Mercenary destroyed. Cld. Ion Engine destroyed. G-47 Trooper knocked back. Imp. Light Cannon destroyed. G-34 Mercenary suffers critical hit (Burn). G-34 Mercenary destroyed. Destroyed Ion Engine. R-06 Scavenger collects Heat Sink. Heat Sink destroyed. Lgt. Treads broken. Overheating: Short circuit. G-34 Mercenary knocked back. R-06 Scavenger collects Aluminum Leg. Lgt. Treads destroyed. Map ----- +----------------------------------------------------+ | ?# """ #??######### =!! #???????????????????? | | ?# """ #??# + [ #???????????????????? | | ?# """ #??# ##+##+###########???????????????????? | | ## #??# # #???????????????????????????? | | ##] #??# # "" #???????????????????????????? | | ??? ???# # "T #???????????????????????????? | | ??###+###### # "" #???????????????????????????? | | ??# # #???????????????????????????? | | ??# [ + #???????????????????????????? | | #####+##### # #???????????????????????????? | | ]== %#???# # """#???????????????????????????? | | = ==#???# # """#???????????????????????????? | | ] ] #???# # """#? ?????????????????????????? | | [##??# + #? ?????????????????????????? | | *%#??#* #########? ?????????????????????????? | | ]=##?## # #? ?????????????????????????? | | ########### + #? ?????????????????????????? | | %= = %# #? ?????????????????????????? | | =] / #########? ?????????????????????????? | | ######+####+########### #????????????????????????? | | # # #????????????????????????? | | """"" # # #????????????????????????? | | """""" # # #?##?????????????????????? | | " """ # # ##!######????????????????? | | # # #%%%/!! #????????????????? | | [ #######+###### #@**!!! #????????????????? | | #+############# %/g%%!!! #????????????????? | | # #???# ## #####gg########????????????????? | | # #???# ## #???#r#????????????????????????? | | #???# ## #???# #????????????????########? | | ##### ## #####/#####????????????# T #? | | + ## ## #????????????# #? | | #? ## ## #????????????# """#? | | ####+### # #????????????# """#? | | % # #????????????# """#? | | # % + #?????????????? ?? | | # # ########+########+#### | | # %####### !# ## % [%%[ | | #+## = ######## ## ## % % *=%= | | # # # ## ## !*= %[%% | | "" # # " # ########+### !*%* #######+#### | | "" # # """ # ######## ### *## #??# ## | | "" # # """ # # """# !! # | | # # """ # %%= # "# !! ## | | + + "" # # |"# !! ! #? | | # # """ # #########+###### < ""# #? | | # # "" # #??????????????# |"# "T" #? | | #### # "" # #??????????????# "########? | | # " # +??????????????# """#???????? | | < # # #??????????????## ####???????? | +----------------------------------------------------+ Best States ------------- Heat Dissipation 42 Energy Generation 14 Energy Capacity 280 Matter Stores 300 Matter Capacity 300 Sight Range 16 Terrain Scan Density 10 Evasion (%) 40 Recoil Reduction 2 Item Schematics ----------------- None Robot Schematics ------------------ None Fabricated ------------ Nothing Alien Tech Used ----------------- None Achievements -------------- None Challenges ------------ None Game ------ Seed PitchforkElectronCarapace Manual? 0 Play Time 00:16:34 Cumulative 33.6 hours Start 2025.03.31 @ 19:10:01 End 2025.03.31 @ 19:26:33 Sessions 1 Manual Loads 0 Difficulty Rogue Special Mode None Game No. 93 Rogue 93 Adventurer 0 Explorer 0 Win Type - Total 0 Types 0/0/0/0/0/0/0/0/0 Lore% 16 Gallery% 24 Achievement% 25 Wizard Run 0 Options --------- Layout 1 ASCII 0 Keyboard 0 Movement Mouse Keybinds 0 Fullscreen 1 Font 36/Smallcaps Map View 50x40 Zoom Use 0% Tactical HUD 0 Map Filters NONE Filters NONE Steam 1 RUN: 4cda1899-88bb-4ad9-ba6e-5faacd3754ee